fUST/lending_fUST_20251018
["ID","MTS","AMOUNT","RATE_DAILY","PERIOD"]
[391674536,1760725338436,150.0,0.00022576,2]
[391674537,1760725339420,150.0,0.00023652,2]
[391674538,1760725339844,150.0,0.00024727,2]
[391674539,1760725340269,150.0,0.00025802,2]
[391674540,1760725340703,150.0,0.00026877,2]
[391674542,1760725413234,150.0,0.00022639,2]
[391674543,1760725413676,150.0,0.00023717,2]
[391674544,1760725414114,150.0,0.00024795,2]
[391674545,1760725414562,150.0,0.00025873,2]
[391674546,1760725414987,150.0,0.00026951,2]
[391674547,1760725460517,200.0,0.00026424,2]
[391674548,1760725484036,150.0,0.00022668,2]
[391674549,1760725484458,150.0,0.00023748,2]
[391674550,1760725484891,150.0,0.00024827,2]
[391674551,1760725486877,402.69031254,0.00027,2]
[391674552,1760725543726,1000.0,0.00026411,30]
[391674554,1760725614724,150.0,0.00025205,2]
[391674555,1760725615146,172.5,0.00025805,2]
[391674556,1760725615562,195.0,0.00026405,2]
[391674557,1760725629694,151.30210609,0.00026352,2]
[391674558,1760725660057,200.0,0.000261,2]
[391674560,1760725691327,200.0,0.0002651,2]
[391674563,1760725717675,6154.56593042,0.00025,2]
[391674564,1760725721529,720.83553606,0.00033762,120]
[391674566,1760725725731,1014.27518279,0.0002904,120]
[391674567,1760725803142,547.24691634,0.00033762,60]
[391674575,1760725823600,206.9896312,0.00026535,2]
[391674602,1760725832458,-217.5,0.00027005,2]
[391674604,1760725832468,-200.0,0.00027005,2]
[391674606,1760725832478,-154.51754499,0.00027219,2]
[391674608,1760725832488,-307.08225989,0.00027309,2]
[391674610,1760725832497,-678.51505841,0.00027319,2]
[391674611,1760725832507,-307.08225988,0.00027364,2]
[391674613,1760725832516,-1200.0,0.00027405,2]
[391674615,1760725832527,-300.0,0.00027406,2]
[391674617,1760725832539,-300.0,0.00027406,2]
[391674620,1760725832551,-300.0,0.00027406,2]
[391674623,1760725832561,-300.0,0.00027406,2]
[391674626,1760725832572,-300.0,0.00027406,2]
[391674628,1760725832582,-1200.0,0.00027407,2]
[391674630,1760725832593,-50000.0,0.00027408,2]
[391674632,1760725832603,-1959.71130039,0.00027419,2]
[391674633,1760725832612,-307.08225988,0.00027419,2]
[391674634,1760725832621,-3799.5894131,0.00027419,2]
[391674635,1760725832630,-273.97,0.00027498,10]
[391674636,1760725832640,-473.42,0.00027498,10]
[391674637,1760725832650,-394.52,0.00027498,10]
[391674638,1760725832661,-500.0,0.00027507,2]
[391674639,1760725832674,-500.0,0.00027507,2]
[391674640,1760725832683,-500.0,0.00027507,2]
[391674641,1760725832692,-609.28272155,0.00027507,2]
[391674642,1760725832702,-552.70095278,0.00027507,2]
[391674643,1760725832712,-500.0,0.00027507,2]
[391674644,1760725832721,-500.0,0.00027507,2]
[391674645,1760725832731,-500.0,0.00027507,2]
[391674646,1760725832740,-500.0,0.00027507,2]
[391674647,1760725832750,-500.0,0.00027507,2]
[391674648,1760725832759,-240.86203448,0.00027507,2]
[391674649,1760725832769,-59360.9898215,0.00027508,2]
[391674650,1760725832779,-166.84977167,0.00027508,2]
[391674651,1760725832789,-2841.79,0.00027509,2]
[391674652,1760725832799,-281.17350901,0.00027513,2]
[391674653,1760725832809,-547.73582639,0.00027516,5]
[391674654,1760725832818,-199.0,0.00027518,7]
[391674655,1760725832829,-484.42886317,0.00027518,2]
[391674656,1760725832838,-324.52989301,0.00027518,2]
[391674657,1760725832848,-624.89928781,0.00027518,2]
[391674658,1760725832859,-500.0,0.00027519,10]
[391674659,1760725832868,-238201.76827078,0.00027519,2]
[391674660,1760725835200,218.66295,0.000272,120]
[391674661,1760725837901,1217.48181898,0.00022762,2]
[391674685,1760725838314,-328.76,0.00027519,10]
[391674687,1760725838324,-58603.18083622,0.00027519,2]
[391674689,1760725838333,-1334.79817336,0.00027519,2]
[391674691,1760725838343,-369360.19790468,0.00027529,2]
[391674693,1760725838352,-500.0,0.00027573,5]
[391674695,1760725838366,-500.34390494,0.00027573,5]
[391674697,1760725838375,-500.0,0.00027573,5]
[391674699,1760725838385,-500.0,0.00027573,5]
[391674701,1760725838395,-500.0,0.00027573,5]
[391674703,1760725838404,-511.31660173,0.00027573,5]
[391674705,1760725838414,-500.0,0.00027573,5]
[391674707,1760725838423,-500.0,0.00027573,5]
[391674709,1760725838434,-500.0,0.00027573,5]
[391674711,1760725838443,-500.0,0.00027573,2]
[391674713,1760725838453,-500.0,0.00027573,5]
[391674715,1760725838463,-500.0,0.00027573,5]
[391674717,1760725838472,-500.84834209,0.00027573,5]
[391674719,1760725838482,-500.0,0.00027573,5]
[391674721,1760725838491,-500.0,0.00027573,5]
[391674723,1760725838501,-500.0,0.00027573,5]
[391674725,1760725838510,-500.0,0.00027573,5]
[391674727,1760725838520,-500.0,0.00027573,5]
[391674729,1760725838529,-1702.03230347,0.00027587,2]
[391674731,1760725838539,-166.84977167,0.0002759,2]
[391674733,1760725838548,-12948.07,0.000276,7]
[391674735,1760725838558,-2110.82,0.000276,2]
[391674738,1760725838568,-240.748734,0.000276,2]
[391674739,1760725838577,-151.591364,0.000276,2]
[391674741,1760725838586,-1069.33,0.000276,2]
[391674743,1760725838595,-240.0,0.00027605,2]
[391674746,1760725838605,-160.229,0.00027662,17]
[391674747,1760725838615,-500.0,0.000277,5]
[391674750,1760725838625,-506.53703909,0.00027783,5]
[391674752,1760725838635,-500.0,0.00027783,5]
[391674754,1760725838644,-500.0,0.00027783,5]
[391674756,1760725838654,-500.0,0.00027783,5]
[391674758,1760725838663,-500.0,0.00027783,5]
[391674760,1760725838673,-500.0,0.00027783,5]
[391674762,1760725838685,-501.56055329,0.00027783,5]
[391674764,1760725838694,-199.0,0.00027792,8]
[391674766,1760725838704,-500.0,0.00027793,10]
[391674768,1760725838714,-160.0,0.00027833,2]
[391674770,1760725838723,-500.0,0.00027847,5]
[391674772,1760725838734,-22508.0,0.0002787,7]
[391674774,1760725838744,-3799.58941306,0.00027967,2]
[391674776,1760725838753,-199.0,0.00028066,9]
[391674778,1760725838763,-500.0,0.00028067,10]
[391674780,1760725838774,-469.57264571,0.00028121,5]
[391674782,1760725838783,-1000.0,0.00028121,5]
[391674784,1760725838793,-1000.0,0.00028121,5]
[391674787,1760725838804,-1000.0,0.00028121,2]
[391674789,1760725838814,-1000.0,0.00028121,5]
[391674791,1760725838823,-1000.0,0.00028121,5]
[391674793,1760725838834,-1000.0,0.00028121,5]
[391674795,1760725838843,-503.42356174,0.00028121,5]
[391674797,1760725838852,-1001.82012558,0.00028121,5]
[391674799,1760725838863,-1000.0,0.00028121,5]
[391674801,1760725838871,-500.0,0.00028121,5]
[391674803,1760725838880,-262.5,0.00028205,2]
[391674805,1760725838890,-500.0,0.00028286,5]
[391674807,1760725838900,-2841.79,0.0002833,4]
[391674809,1760725838909,-500.0,0.00028331,5]
[391674811,1760725838918,-1000.0,0.00028331,5]
[391674813,1760725838928,-1000.0,0.00028331,5]
[391674815,1760725838940,-199.0,0.0002834,10]
[391674817,1760725838951,-500.0,0.00028341,10]
[391674819,1760725838960,-240.748734,0.00028352,2]
[391674821,1760725838969,-151.591364,0.00028352,2]
[391674823,1760725838979,-260.0,0.00028381,2]
[391674825,1760725838988,-500.0,0.00028395,5]
[391674827,1760725838998,-166.84977167,0.00028398,2]
[391674829,1760725839008,-49218.90347269,0.000285,7]
[391674831,1760725839017,-3799.58941306,0.00028515,2]
[391674833,1760725839027,-300.0,0.00028548,30]
[391674835,1760725839038,-300.0,0.00028548,30]
[391674837,1760725839047,-300.0,0.00028548,30]
[391674839,1760725839057,-300.0,0.00028548,30]
[391674841,1760725839067,-300.0,0.00028548,30]
[391674843,1760725839076,-300.0,0.00028548,30]
[391674845,1760725839087,-300.0,0.00028548,30]
[391674847,1760725839097,-300.0,0.00028548,30]
[391674849,1760725839107,-300.0,0.00028548,30]
[391674851,1760725839118,-300.0,0.00028548,30]
[391674853,1760725839129,-300.0,0.00028548,30]
[391674855,1760725839140,-300.0,0.00028548,30]
[391674857,1760725839151,-300.0,0.00028548,30]
[391674859,1760725839160,-300.0,0.00028548,30]
[391674861,1760725839170,-300.0,0.00028548,30]
[391674863,1760725839180,-627.84246924,0.0002855,5]
[391674865,1760725839190,-500.0,0.0002855,5]
[391674867,1760725839200,-151.0,0.000286,17]
[391674869,1760725839210,-199.0,0.00028614,11]
[391674871,1760725839220,-500.0,0.00028615,10]
[391674873,1760725839231,-283.53120276,0.0002864,5]
[391674875,1760725839246,-500.0,0.0002864,5]
[391674877,1760725839255,-500.0,0.0002864,5]
[391674879,1760725839267,-500.0,0.0002864,5]
[391674881,1760725839278,-504.22237887,0.0002864,5]
[391674883,1760725839289,-635.43993019,0.0002864,5]
[391674885,1760725839299,-1500.0,0.00028668,5]
[391674887,1760725839309,-822.56569335,0.00028668,5]
[391674889,1760725839320,-1500.0,0.00028668,2]
[391674891,1760725839330,-623.82918594,0.00028668,5]
[391674893,1760725839340,-682.03677432,0.00028668,5]
[391674895,1760725839350,-1500.0,0.00028668,5]
[391674897,1760725839359,-1500.0,0.00028668,5]
[391674899,1760725839368,-500.0,0.00028668,5]
[391674901,1760725839378,-600.0,0.00028691,30]
[391674903,1760725839388,-286.1472086,0.00028767,30]
[391674905,1760725839397,-151.0,0.000288,20]
[391674907,1760725839407,-285.0,0.00028805,2]
[391674908,1760725839416,-1000.0,0.00028834,5]
[391674910,1760725839426,-1500.0,0.00028879,5]
[391674912,1760725839437,-199.0,0.00028888,12]
[391674914,1760725839448,-500.0,0.00028889,10]
[391674916,1760725839458,-1069.33,0.000289,2]
[391674919,1760725839468,-360.0,0.00028929,2]
[391674921,1760725839479,-500.0,0.00028942,5]
[391674922,1760725839489,-3799.58941306,0.00029062,2]
[391674924,1760725839499,-1000.0,0.00029098,5]
[391674927,1760725839509,-151.0,0.000291,14]
[391674928,1760725839519,-240.748734,0.00029103,2]
[391674930,1760725839529,-151.591364,0.00029103,2]
[391674932,1760725839539,-2841.79,0.00029152,6]
[391674935,1760725839550,-199.0,0.00029162,13]
[391674936,1760725839559,-500.0,0.00029163,10]
[391674938,1760725839569,-1000.0,0.00029188,5]
[391674940,1760725839579,-1000.0,0.00029188,5]
[391674942,1760725839590,-12948.07,0.000292,7]
[391674944,1760725839600,-2000.0,0.00029216,5]
[391674946,1760725839610,-2000.0,0.00029216,2]
[391674948,1760725839620,-2000.0,0.00029216,5]
[391674950,1760725839630,-842.59680949,0.00029216,5]
[391674952,1760725839640,-500.0,0.00029216,5]
[391674954,1760725839649,-5000.0,0.00029262,2]
[391674956,1760725839659,-2110.82,0.000294,2]
[391674958,1760725839668,-151.0,0.000294,19]
[391674960,1760725839677,-307.5,0.00029405,2]
[391674962,1760725839687,-500.0,0.00029427,5]
[391674964,1760725839697,-199.0,0.00029436,14]
[391674966,1760725839706,-500.0,0.00029437,10]
[391674968,1760725839715,-500.0,0.00029462,5]
[391674970,1760725839724,-460.0,0.00029477,2]
[391674972,1760725839733,-500.0,0.0002949,5]
[391674974,1760725839743,-157.12452363,0.000295,120]
[391674976,1760725839752,-500.0,0.00029517,5]
[391674978,1760725839761,-71108.05283662,0.0002956,2]
[391674980,1760725839770,-244.46671191,0.00029572,5]
[391674982,1760725839780,-150.0,0.00029588,2]
[391674984,1760725839789,-240.748734,0.000296,20]
[391674986,1760725839798,-151.0,0.000296,10]
[391674988,1760725839807,-151.591364,0.000296,20]
[391674990,1760725839816,-3799.58941306,0.0002961,2]
[391674992,1760725839826,-420.0,0.00029617,2]
[391674994,1760725839835,-420.0,0.00029617,2]
[391674996,1760725839844,-420.0,0.00029617,2]
[391674998,1760725839855,-420.0,0.00029617,2]
[391675000,1760725839865,-420.0,0.00029617,2]
[391675002,1760725839874,-1680.0,0.00029618,2]
[391675004,1760725839883,-1500.0,0.00029646,5]
[391675006,1760725839892,-775984.12832209,0.000297,2]
[391675008,1760725839902,-199.0,0.0002971,15]
[391675010,1760725839911,-500.0,0.00029711,10]
[391675012,1760725839920,-166.84977167,0.00029726,2]
[391675027,1760725840062,-1500.0,0.00029736,5]
[391675029,1760725840071,-1500.0,0.00029736,5]
[391675031,1760725840081,-1680.0,0.00029746,2]
[391675033,1760725840091,-2112.1449057,0.00029764,5]
[391675035,1760725840100,-2500.0,0.00029764,5]
[391675037,1760725840109,-500.0,0.00029764,5]
[391675039,1760725840119,-5130.60983158,0.000298,2]
[391675040,1760725840128,-240.748734,0.00029855,2]
[391675042,1760725840138,-151.591364,0.00029855,2]
[391675044,1760725840147,-154.724296,0.00029855,2]
[391675046,1760725840156,-158.478751,0.00029855,2]
[391675048,1760725840166,-151.0,0.000299,10]
[391675050,1760725840175,-151.0,0.000299,20]
[391675052,1760725840186,-151.0,0.000299,17]
[391675054,1760725840196,-150.0,0.00029973,5]
[391675056,1760725840205,-161.73935046,0.00029973,5]
[391675058,1760725840215,-2841.79,0.00029974,8]
[391675060,1760725840224,-500.95043733,0.00029979,11]
[391675062,1760725840237,-500.0,0.00029979,11]
[391675064,1760725840247,-199.0,0.00029984,16]
[391675065,1760725840256,-500.0,0.00029985,10]
[391675067,1760725840265,-174.15,0.0003,2]
[391675069,1760725840275,-217.68825,0.0003,2]
[391675071,1760725840284,-203.55825,0.0003,2]
[391675073,1760725840293,-254061.26473385,0.0003,30]
[391675074,1760725840302,-3416.38337545,0.0003,2]
[391675076,1760725840314,-525.37951108,0.0003,2]
[391675078,1760725840323,-200.18632911,0.0003,2]
[391675080,1760725840333,-5928.62460561,0.0003,2]
[391675083,1760725840345,-330.0,0.00030005,2]
[391675085,1760725840355,-560.0,0.00030025,2]
[391675087,1760725840367,-417.128762,0.00030038,5]
[391675089,1760725840376,-12515.65446909,0.000301,3]
[391675090,1760725840385,-340.38720997,0.0003012,7]
[391675092,1760725840395,-1001.09863002,0.00030126,2]
[391675094,1760725840404,-285.41324671,0.0003013,2]
[391675096,1760725840413,-181.69401206,0.00030136,5]
[391675098,1760725840423,-500.0,0.00030136,5]
[391675100,1760725840434,-500.0,0.00030136,5]
[391675102,1760725840444,-500.0,0.00030136,5]
[391675104,1760725840454,-500.0,0.00030136,5]
[391675106,1760725840463,-500.0,0.00030136,5]
[391675108,1760725840472,-500.0,0.00030136,5]
[391675110,1760725840482,-500.0,0.00030136,5]
[391675112,1760725840492,-504.78775358,0.00030136,5]
[391675114,1760725840502,-500.0,0.00030136,5]
[391675116,1760725840511,-501.33582416,0.00030136,5]
[391675118,1760725840520,-500.0,0.00030136,5]
[391675120,1760725840529,-481.94812951,0.00030136,5]
[391675122,1760725840539,-509.41588892,0.00030136,5]
[391675124,1760725840548,-500.0,0.00030136,5]
[391675126,1760725840557,-552.29,0.00030136,5]
[391675128,1760725840566,-552.29,0.00030136,5]
[391675129,1760725840575,-552.29,0.00030136,5]
[391675132,1760725840584,-552.29,0.00030136,5]
[391675133,1760725840594,-552.29,0.00030136,5]
[391675135,1760725840603,-552.29,0.00030136,5]
[391675137,1760725840612,-552.29,0.00030136,5]
[391675139,1760725840621,-552.29,0.00030136,5]
[391675141,1760725840631,-500.0,0.00030136,5]
[391675143,1760725840639,-552.29,0.00030136,5]
[391675145,1760725840649,-552.29,0.00030136,5]
[391675147,1760725840658,-552.29,0.00030136,5]
[391675149,1760725840667,-552.29,0.00030136,5]
[391675151,1760725840677,-552.29,0.00030136,5]
[391675153,1760725840690,-552.29,0.00030136,5]
[391675155,1760725840700,-552.29,0.00030136,5]
[391675157,1760725840709,-552.29,0.00030136,5]
[391675159,1760725840718,-552.29,0.00030136,5]
[391675161,1760725840727,-500.0,0.00030136,5]
[391675163,1760725840737,-552.29,0.00030136,5]
[391675165,1760725840746,-552.29,0.00030136,5]
[391675167,1760725840755,-552.29,0.00030136,5]
[391675169,1760725840764,-552.29,0.00030136,5]
[391675171,1760725840773,-509.39719672,0.00030136,5]
[391675173,1760725840782,-552.29,0.00030136,5]
[391675175,1760725840791,-552.29,0.00030136,5]
[391675177,1760725840801,-552.52,0.00030136,5]
[391675178,1760725840810,-503.93360554,0.00030136,5]
[391675180,1760725840819,-500.0,0.00030136,5]
[391675182,1760725840828,-504.35495939,0.00030136,5]
[391675184,1760725840837,-500.0,0.00030136,5]
[391675186,1760725840847,-514.45537997,0.00030136,5]
[391675188,1760725840855,-507.88865091,0.00030136,5]
[391675190,1760725840865,-508.00978097,0.00030136,5]
[391675192,1760725840875,-503.14477328,0.00030136,5]
[391675194,1760725840884,-500.0,0.00030136,5]
[391675196,1760725840893,-500.0,0.00030136,5]
[391675198,1760725840902,-500.0,0.00030136,5]
[391675200,1760725840911,-500.0,0.00030136,5]
[391675202,1760725840920,-500.0,0.00030136,5]
[391675204,1760725840930,-505.9958182,0.00030136,5]
[391675206,1760725840940,-500.0,0.00030136,5]
[391675208,1760725840950,-500.0,0.00030136,5]
[391675210,1760725840959,-500.0,0.00030136,5]
[391675212,1760725840970,-500.0,0.00030136,5]
[391675214,1760725840980,-500.0,0.00030136,5]
[391675216,1760725840989,-500.0,0.00030136,5]
[391675218,1760725840999,-500.0,0.00030136,5]
[391675220,1760725841009,-500.0,0.00030136,5]
[391675222,1760725841019,-500.0,0.00030136,5]
[391675224,1760725841029,-500.0,0.00030136,5]
[391675225,1760725841038,-613.71855809,0.00030136,5]
[391675227,1760725841047,-500.0,0.00030136,5]
[391675229,1760725841056,-506.90729458,0.00030136,5]
[391675231,1760725841066,-653.4,0.00030136,5]
[391675233,1760725841075,-500.0,0.00030136,5]
[391675235,1760725841084,-500.0,0.00030136,5]
[391675237,1760725841094,-502.77748724,0.00030136,5]
[391675239,1760725841103,-501.51191502,0.00030136,5]
[391675241,1760725841112,-500.0,0.00030136,5]
[391675243,1760725841121,-389.80559468,0.00030136,5]
[391675245,1760725841131,-500.0,0.00030136,5]
[391675247,1760725841140,-330.78601563,0.00030136,5]
[391675249,1760725841149,-500.0,0.00030136,5]
[391675250,1760725841158,-482.12727945,0.00030136,5]
[391675252,1760725841167,-500.0,0.00030136,2]
[391675254,1760725841176,-500.0,0.00030136,5]
[391675256,1760725841186,-501.19517985,0.00030136,5]
[391675258,1760725841195,-500.0,0.00030136,5]
[391675260,1760725841204,-500.0,0.00030136,5]
[391675262,1760725841213,-513.19213595,0.00030136,5]
[391675264,1760725841222,-646.60301104,0.00030136,5]
[391675266,1760725841231,-500.0,0.00030136,5]
[391675268,1760725841246,-500.0,0.00030136,5]
[391675270,1760725841255,-500.0,0.00030136,5]
[391675271,1760725841265,-500.0,0.00030136,5]
[391675273,1760725841275,-500.0,0.00030136,5]
[391675275,1760725841287,-500.0,0.00030136,5]
[391675277,1760725841296,-500.0,0.00030136,5]
[391675279,1760725841305,-500.0,0.00030136,5]
[391675281,1760725841315,-500.0,0.00030136,5]
[391675283,1760725841324,-500.0,0.00030136,5]
[391675285,1760725841334,-500.0,0.00030136,5]
[391675287,1760725841343,-500.0,0.00030136,5]
[391675289,1760725841352,-500.0,0.00030136,5]
[391675291,1760725841362,-500.0,0.00030136,5]
[391675293,1760725841371,-500.0,0.00030136,5]
[391675295,1760725841381,-500.0,0.00030136,5]
[391675296,1760725841390,-735.28,0.00030136,5]
[391675298,1760725841399,-500.40062163,0.00030136,5]
[391675300,1760725841409,-500.0,0.00030136,5]
[391675302,1760725841418,-500.0,0.00030136,5]
[391675304,1760725841427,-500.0,0.00030136,5]
[391675306,1760725841438,-508.48410421,0.00030136,5]
[391675308,1760725841447,-500.0,0.00030136,5]
[391675310,1760725841456,-508.71173251,0.00030136,5]
[391675312,1760725841465,-500.0,0.00030136,5]
[391675314,1760725841475,-500.0,0.00030136,5]
[391675316,1760725841484,-500.0,0.00030136,5]
[391675318,1760725841493,-936.96,0.00030136,5]
[391675320,1760725841503,-519.52,0.00030136,5]
[391675322,1760725841512,-548.8774267,0.00030136,120]
[391675323,1760725841521,-500.0,0.00030136,5]
[391675324,1760725841530,-500.0,0.00030136,5]
[391675325,1760725841539,-500.0,0.00030136,5]
[391675326,1760725841547,-500.0,0.00030136,5]
[391675327,1760725841556,-500.0,0.00030136,5]
[391675328,1760725841565,-502.52521984,0.00030136,5]
[391675329,1760725841574,-500.0,0.00030136,5]
[391675330,1760725841583,-630.66386001,0.00030136,5]
[391675331,1760725841592,-500.0,0.00030136,5]
[391675332,1760725841601,-484.79428999,0.00030136,5]
[391675333,1760725841610,-500.0,0.00030136,5]
[391675334,1760725841619,-503.33557328,0.00030136,5]
[391675335,1760725841627,-500.0,0.00030136,5]
[391675336,1760725841636,-500.0,0.00030136,5]
[391675337,1760725841644,-1000.0,0.00030136,2]
[391675338,1760725841653,-500.0,0.00030136,5]
[391675339,1760725841662,-539.7,0.00030136,5]
[391675340,1760725841671,-500.0,0.00030136,5]
[391675341,1760725841679,-339.61083708,0.00030136,5]
[391675342,1760725841689,-500.0,0.00030136,5]
[391675343,1760725841698,-500.0,0.00030136,5]
[391675344,1760725841707,-500.0,0.00030136,5]
[391675345,1760725841715,-514.84127014,0.00030136,5]
[391675347,1760725841725,-500.0,0.00030136,5]
[391675348,1760725841733,-200.38546124,0.00030136,5]
[391675350,1760725841743,-585.22,0.00030136,5]
[391675352,1760725841752,-585.22,0.00030136,5]
[391675354,1760725841761,-585.22,0.00030136,5]
[391675356,1760725841771,-585.22,0.00030136,5]
[391675358,1760725841779,-585.22,0.00030136,5]
[391675360,1760725841788,-532.29732982,0.00030136,5]
[391675362,1760725841798,-585.22,0.00030136,5]
[391675363,1760725841807,-585.22,0.00030136,5]
[391675365,1760725841817,-585.22,0.00030136,5]
[391675367,1760725841826,-585.22,0.00030136,5]
[391675369,1760725841835,-585.22,0.00030136,5]
[391675371,1760725841844,-585.22,0.00030136,5]
[391675374,1760725841854,-585.22,0.00030136,5]
[391675376,1760725841863,-585.22,0.00030136,5]
[391675377,1760725841872,-585.22,0.00030136,5]
[391675379,1760725841881,-585.22,0.00030136,5]
[391675381,1760725841891,-585.22,0.00030136,5]
[391675383,1760725841900,-585.22,0.00030136,5]
[391675385,1760725841909,-585.22,0.00030136,5]
[391675387,1760725841918,-585.22,0.00030136,5]
[391675389,1760725841928,-585.22,0.00030136,5]
[391675391,1760725841938,-585.22,0.00030136,5]
[391675393,1760725841947,-585.22,0.00030136,5]
[391675395,1760725841957,-585.22,0.00030136,5]
[391675397,1760725841966,-585.34789315,0.00030136,5]
[391675399,1760725841975,-514.99158614,0.00030136,5]
[391675401,1760725841984,-500.0,0.00030136,5]
[391675403,1760725841994,-502.05269416,0.00030136,5]
[391675405,1760725842003,-545.0,0.00030136,5]
[391675407,1760725842012,-500.0,0.00030136,5]
[391675409,1760725842021,-500.0,0.00030136,5]
[391675411,1760725842031,-483.17457533,0.00030136,5]
[391675413,1760725842040,-500.0,0.00030136,5]
[391675415,1760725842050,-502.35899625,0.00030136,5]
[391675417,1760725842060,-500.0,0.00030136,5]
[391675419,1760725842070,-507.29991003,0.00030136,5]
[391675421,1760725842079,-703.96,0.00030136,5]
[391675423,1760725842090,-500.0,0.00030136,5]
[391675425,1760725842099,-500.0,0.00030136,5]
[391675427,1760725842109,-500.0,0.00030136,5]
[391675429,1760725842118,-741.3,0.00030136,5]
[391675431,1760725842127,-501.17142525,0.00030136,5]
[391675433,1760725842136,-371.29463615,0.00030136,5]
[391675435,1760725842146,-213.79316241,0.00030136,5]
[391675437,1760725842155,-2178.14,0.00030136,5]
[391675439,1760725842164,-2178.14,0.00030136,5]
[391675441,1760725842173,-501.01454209,0.00030136,5]
[391675443,1760725842183,-2178.14,0.00030136,5]
[391675445,1760725842193,-2178.14,0.00030136,5]
[391675447,1760725842203,-2178.14,0.00030136,5]
[391675449,1760725842211,-2178.14,0.00030136,5]
[391675451,1760725842220,-2178.14,0.00030136,5]
[391675453,1760725842230,-500.0,0.00030136,5]
[391675455,1760725842244,-2178.14,0.00030136,5]
[391675457,1760725842253,-2178.14,0.00030136,5]
[391675459,1760725842262,-2178.14,0.00030136,5]
[391675461,1760725842271,-2178.14,0.00030136,5]
[391675463,1760725842281,-2178.14,0.00030136,5]
[391675465,1760725842291,-2178.14,0.00030136,5]
[391675467,1760725842300,-2178.14,0.00030136,5]
[391675469,1760725842312,-2178.14,0.00030136,5]
[391675471,1760725842321,-2178.14,0.00030136,5]
[391675473,1760725842330,-2178.14,0.00030136,5]
[391675475,1760725842340,-491.81562693,0.00030136,5]
[391675477,1760725842349,-2178.14,0.00030136,5]
[391675479,1760725842358,-2178.14,0.00030136,5]
[391675480,1760725842367,-2178.14,0.00030136,5]
[391675482,1760725842376,-2178.14,0.00030136,5]
[391675484,1760725842385,-2178.14,0.00030136,5]
[391675486,1760725842395,-2178.14,0.00030136,5]
[391675491,1760725842403,-2178.17963968,0.00030136,5]
[391675493,1760725842443,-1917.86,0.00030136,2]
[391675495,1760725842453,-500.0,0.00030136,5]
[391675497,1760725842462,-500.0,0.00030136,5]
[391675499,1760725842471,-500.0,0.00030136,5]
[391675501,1760725842481,-501.25144548,0.00030136,5]
[391675503,1760725842490,-500.0,0.00030136,5]
[391675505,1760725842499,-500.0,0.00030136,5]
[391675507,1760725842509,-500.0,0.00030136,5]
[391675509,1760725842518,-500.0,0.00030136,5]
[391675511,1760725842527,-500.0,0.00030136,5]
[391675513,1760725842537,-500.0,0.00030136,5]
[391675515,1760725842546,-500.0,0.00030136,5]
[391675517,1760725842555,-502.15143191,0.00030136,5]
[391675519,1760725842564,-878.46,0.00030136,5]
[391675521,1760725842573,-532.27592678,0.00030136,5]
[391675523,1760725842583,-500.0,0.00030136,5]